[Event "RUS-ch Youth U21 Girls 2017"]
[Site "Loo"]
[Date "2017.04.28"]
[Round "9"]
[White "Rodionova, Daria"]
[Black "Obolentseva, Alexandra"]
[Result "1/2-1/2"]
[ECO "B53"]
[WhiteElo "2164"]
[BlackElo "2346"]
[Annotator "NA"]
[PlyCount "85"]
[EventDate "2017.??.??"]
[EventType "tourn"]
[EventCountry "RUS"]
[SourceTitle "playchess.com"]
[Source "ChessBase"]
[SourceQuality "1"]
[TimeControl "40/5400+30:1800+30"]

{[%evp 8,85,25,32767,32767,32767,32767,14,32767,7,32767,32767,32767,32767,18,32767,32767,40,28,30,32767,25,21,34,52,0,27,0,32767,0,29,27,32767,22,20,32,24,0,0,0,0,0,12,-4,0,-9,32767,-5,-9,32767,0,-19,32767,0,0,32767,32767,53,32767,32767,32767,91,126,57,50,32767,32767,32767,32767,32767,32767,32767,32767,32767,32767,32767,32767,0,5,0]} 1. e4 {[%emt 0:00:00]} c5 {[%emt 0:00:07]} 2. Nf3 {[%emt 0:00:00]} d6 {[%emt 0:00:06]} 3. d4 {[%emt 0:00:00]} cxd4 {[%emt 0:00:05]} 4. Qxd4 {[%emt 0:00:07]} Nc6 {[%emt 0:00:06]} 5. Bb5 {[%emt 0:00:51]} Bd7 {[%emt 0:00:07]} 6. Qd3 {[%emt 0:00:23]} Nf6 {[%emt 0:00:22]} 7. c4 {[%emt 0:00:49]} g6 {[%emt 0:00:28]} 8. Nc3 {[%emt 0:01:36]} Bg7 {[%emt 0:00:08]} 9. O-O {[%emt 0:01:08]} O-O {[%emt 0:00:09]} 10. h3 {[%emt 0:00:09]} Rc8 {[%emt 0:00:37] LiveBook: 35 Games} 11. Be3 {[%emt 0:01:01]} a6 {[%emt 0:00:24]} 12. Bxc6 {[%emt 0:00:37]} Bxc6 {[%emt 0:00:08]} 13. Nd4 {[%emt 0:01:27]} Nd7 {[%emt 0:00:07]} 14. Rac1 {[%emt 0:01:11]} Nc5 {[%emt 0:00:07]} 15. Qb1 {[%emt 0:01:09]} Ne6 {[%emt 0:00:06]} 16. Qd3 {[%emt 0:14:16]} Nc5 {[%emt 0:02:02]} 17. Qb1 {[%emt 0:00:23]} Ne6 {[%emt 0:00:05]} 18. Qd3 {[%emt 0:00:20]} Nxd4 {[%emt 0:08:09]} 19. Bxd4 {[%emt 0:00:08]} Bxd4 {[%emt 0:00:39]} 20. Qxd4 {[%emt 0:00:04]} b5 {[%emt 0:00:06]} 21. cxb5 {[%emt 0:14:41]} axb5 {[%emt 0:00:14]} 22. Nd5 {[%emt 0:02:33]} Bxd5 {[%emt 0:01:51]} 23. exd5 {[%emt 0:03:11]} Qd7 {[%emt 0:02:16]} 24. Rfe1 {[%emt 0:06:54]} Qb7 {[%emt 0:03:50]} 25. Rxc8 {[%emt 0:05:44]} Rxc8 {[%emt 0:00:06]} 26. Qe4 {[%emt 0:03:44]} Rc7 {[%emt 0:01:00]} 27. a3 {[%emt 0:00:57]} Qa7 {[%emt 0:04:59]} 28. Qh4 {[%emt 0:14:00]} Qa4 {[%emt 0:02:30]} 29. Qg5 {[%emt 0:10:39]} f6 {[%emt 0:00:20]} 30. Qe3 {[%emt 0:00:30]} Qc4 {[%emt 0:00:37]} 31. Qb6 {[%emt 0:03:27]} Rd7 {[%emt 0:04:03]} 32. Qb8+ {[%emt 0:01:50]} Kg7 {[%emt 0:00:46]} 33. Qe8 {[%emt 0:02:38]} Qc7 {[%emt 0:00:05]} 34. h4 {[%emt 0:02:30]} Qb7 {[%emt 0:05:39]} 35. h5 {[%emt 0:02:32]} (35. Rc1 $16 {Rc8 is the strong threat.} Rc7 36. Rc6) 35... Rc7 {[%emt 0:00:23]} 36. Re3 {[%emt 0:03:49]} Qxd5 {[%emt 0:01:19]} 37. Rxe7+ {[%emt 0:00:53]} Rxe7 {[%emt 0:00:06]} 38. Qxe7+ {[%emt 0:00:05]} Kh6 {[%emt 0:00:08]} 39. hxg6 {[%emt 0:02:04]} Qd1+ {[%emt 0:00:05]} 40. Kh2 {[%emt 0:00:00]} Qh5+ {[%emt 0:00:09]} 41. Kg1 {[%emt 0:01:04]} Qd1+ {[%emt 0:00:06]} 42. Kh2 {[%emt 0:00:10]} Qh5+ {[%emt 0:00:04]} 43. Kg1 $11 {[%emt 0:03:47]} 1/2-1/2